bitfinex/quotes_SOLUSD_20241223
["timestamp","ask_amount","ask_price","bid_price","bid_amount"]
[1734941509410,33.63735262,182.8,182.72,33.63735262]
[1734941509612,33.63735262,182.8,182.74,33.63735262]
[1734941509806,41.83005262,182.84,182.76,33.63735262]
[1734941510334,0.6768751,182.86,182.8,33.63735262]
[1734941510625,0.6768751,182.86,182.82,33.63735262]
[1734941514921,0.6768751,182.86,182.84,33.63735262]
[1734941516301,0.6768751,182.86,182.83,33.63735262]
[1734941519340,0.6768751,182.86,182.81,33.63735262]
[1734941519522,7.1313751,182.86,182.79,33.63735262]
[1734941521435,7.1313751,182.86,182.81,33.63735262]
[1734941522336,7.1313751,182.86,182.81,20.70112053]
[1734941524133,7.1313751,182.86,182.79,20.70112053]
[1734941524336,20.82661053,182.85,182.7,14.50376753]
[1734941524525,0.12549,182.82,182.75,20.70112053]
[1734941528737,20.70112053,182.83,182.77,20.70112053]
[1734941528920,7.1313751,182.86,182.79,20.70112053]
[1734941529121,7.1313751,182.86,182.81,20.70112053]
[1734941529529,7.1313751,182.86,182.83,20.70112053]
[1734941529530,0.6768751,182.86,182.83,20.70112053]
[1734941529727,0.6768751,182.86,182.85,20.70112053]
[1734941529930,0.6768751,182.86,182.8,0.82020816]
[1734941530131,0.6768751,182.86,182.82,20.70112053]
[1734941530609,0.6768751,182.86,182.84,20.70112053]
[1734941533453,6.4985,182.95,182.88,20.0]
[1734941533616,1.6202,182.96,182.93,20.70112053]
[1734941533811,6.1405,182.99,182.93,20.70112053]
[1734941534242,6.1405,182.99,182.94,20.70112053]
[1734941535145,1.5386,183.01,182.95,20.70112053]
[1734941535444,6.2328,183.03,182.97,20.70112053]
[1734941535742,1.5418,183.06,183.0,20.70112053]
[1734941535916,1.5418,183.06,183.01,20.70112053]
[1734941537418,1.5418,183.06,182.97,20.70112053]
[1734941537419,1.5418,183.06,183.02,20.70112053]
[1734941537619,1.5418,183.06,183.0,20.70112053]
[1734941537842,22.24292053,183.06,182.99,20.70112053]
[1734941538046,22.24292053,183.06,182.95,20.0]
[1734941538047,20.70112053,183.05,182.98,20.70112053]
[1734941538249,22.24292053,183.06,182.99,20.70112053]
[1734941538553,1.5418,183.06,183.01,20.70112053]
[1734941540977,6.6127,183.07,183.02,20.70112053]
[1734941541663,6.6127,183.07,183.01,20.70112053]
[1734941543053,20.70112053,183.06,182.99,20.70112053]
[1734941543563,6.6127,183.07,183.0,20.70112053]
[1734941544071,6.6127,183.07,183.02,20.70112053]
[1734941546764,6.6127,183.07,183.01,20.70112053]
[1734941547060,6.6127,183.07,182.98,0.81945456]
[1734941547061,20.70112053,183.05,182.98,20.70112053]
[1734941547254,27.31382053,183.07,183.0,20.70112053]
[1734941547548,6.6127,183.07,183.01,20.70112053]
[1734941548193,6.6127,183.07,183.03,20.70112053]
[1734941548781,6.6127,183.07,183.02,20.70112053]
[1734941550190,6.6127,183.07,183.03,20.70112053]
[1734941550388,1.5884,183.1,183.03,20.70112053]
[1734941552795,20.70112053,183.08,183.0,20.70112053]
[1734941552968,20.70112053,183.06,182.98,20.70112053]
[1734941553788,20.70112053,183.05,182.98,20.70112053]
[1734941553962,20.70112053,183.05,182.97,20.70112053]
[1734941554159,20.70112053,183.05,182.98,20.70112053]
[1734941554994,1.5884,183.1,183.02,20.70112053]
[1734941555170,1.5884,183.1,183.03,20.70112053]
[1734941556855,1.6327,183.15,183.03,44.47800453]
[1734941557155,1.6327,183.15,183.03,45.29715797]
[1734941557354,22.33382053,183.15,183.03,45.29715797]
[1734941557551,20.70112053,183.13,183.03,21.52027397]
[1734941558261,20.70112053,183.13,183.05,20.70112053]
[1734941558881,20.70112053,183.12,183.05,20.70112053]
[1734941559372,20.70112053,183.13,183.05,20.70112053]
[1734941559981,20.70112053,183.12,183.05,20.70112053]
[1734941560183,1.6327,183.15,183.02,20.70112053]
[1734941560184,20.70112053,183.1,183.02,20.70112053]
[1734941560484,20.70112053,183.05,182.97,20.70112053]
[1734941560971,20.70112053,183.04,182.97,20.70112053]
[1734941561377,20.70112053,183.05,182.98,20.70112053]
[1734941561587,1.5056,183.06,182.99,20.70112053]
[1734941562088,22.20672053,183.06,182.99,20.70112053]
[1734941562494,1.5056,183.06,182.99,20.70112053]
[1734941564009,22.20672053,183.06,182.99,20.70112053]
[1734941564171,22.20672053,183.06,182.97,20.70112053]
[1734941565078,22.20672053,183.06,182.99,20.70112053]
[1734941567787,6.1111,183.08,183.02,20.70112053]
[1734941567985,6.1111,183.08,182.97,20.70112053]
[1734941567986,6.1111,183.08,183.03,20.70112053]
[1734941568287,1.5167,183.1,183.03,20.70112053]
[1734941568468,22.21782053,183.1,183.03,20.70112053]
[1734941568673,20.70112053,183.07,183.0,20.70112053]
[1734941569180,20.70112053,183.09,183.02,20.70112053]
[1734941569399,25.6129,183.1,183.02,20.70112053]
[1734941570277,20.70112053,183.07,182.98,0.81940205]
[1734941570644,20.70112053,183.07,182.99,20.70112053]
[1734941571543,20.70112053,183.05,182.97,20.70112053]
[1734941572548,20.70112053,183.03,182.95,20.70112053]
[1734941573117,20.70112053,183.03,182.96,20.70112053]
[1734941573344,6.365,183.04,182.99,20.70112053]
[1734941573508,7.8821,183.1,183.03,20.70112053]
[1734941574634,7.8821,183.1,183.05,20.70112053]
[1734941574809,28.32332053,183.15,183.07,20.70112053]
[1734941575312,7.6222,183.15,183.08,20.70112053]
[1734941577633,7.6222,183.15,183.09,20.70112053]
[1734941578243,7.6222,183.15,183.1,33.54112805]
[1734941579138,33.54112805,183.19,183.12,33.54112805]
[1734941579313,43.73632805,183.2,183.12,33.54112805]
[1734941580214,33.54112805,183.19,183.12,33.54112805]
[1734941582217,33.54112805,183.18,183.11,33.54112805]
[1734941582948,33.54112805,183.14,183.07,33.54112805]
[1734941583546,33.54112805,183.14,183.02,14.4787083]
[1734941583547,33.54112805,183.18,183.1,33.54112805]
[1734941583717,33.54112805,183.18,183.11,33.54112805]
[1734941584107,33.54112805,183.19,183.11,33.54112805]
[1734941584550,6.1013,183.2,183.13,33.54112805]
[1734941584851,33.54112805,183.18,183.11,33.54112805]
[1734941585047,33.54112805,183.16,183.08,33.54112805]
[1734941585216,0.12549,183.17,183.05,33.54112805]
[1734941585217,33.54112805,183.12,183.05,33.54112805]
[1734941585411,0.12549,183.17,183.01,9.17107979]
[1734941585640,0.12549,183.17,183.01,8.35189761]
[1734941585819,20.0,183.14,183.01,8.35189761]
[1734941586545,33.54112805,183.11,183.04,33.54112805]
[1734941586747,33.54112805,183.12,183.04,33.54112805]
[1734941587049,33.54112805,183.1,183.03,33.54112805]
[1734941587348,33.54112805,183.09,183.02,33.54112805]
[1734941587507,33.54112805,183.08,183.01,33.54112805]
[1734941588055,33.54112805,183.1,183.02,33.54112805]
[1734941588215,39.62642805,183.11,183.03,33.54112805]
[1734941588413,6.0853,183.11,183.05,33.54112805]
[1734941589453,39.62642805,183.11,183.03,33.54112805]
[1734941589645,35.16612805,183.13,183.05,33.54112805]
[1734941589816,1.625,183.13,183.07,33.54112805]
[1734941590427,39.79272805,183.15,183.09,33.54112805]
[1734941590727,39.79272805,183.15,183.07,33.54112805]
[1734941591464,33.54112805,183.17,183.11,33.54112805]
[1734941591629,1.5499,183.18,183.11,33.54112805]
[1734941592965,1.5499,183.18,183.06,0.81902863]
[1734941592966,33.54112805,183.17,183.09,33.54112805]
[1734941594816,33.54112805,183.15,183.07,33.54112805]
[1734941598053,33.54112805,183.12,183.04,33.54112805]
[1734941598258,6.3927,183.11,183.04,20.65095439]
[1734941598487,20.65095439,183.1,183.02,20.65095439]
[1734941598689,1.5081,183.09,183.02,20.65095439]
[1734941599483,6.3927,183.11,183.04,20.65095439]
[1734941602099,6.3927,183.11,183.06,20.65095439]
[1734941602608,6.3927,183.11,183.04,20.65095439]
[1734941603675,6.3927,183.11,183.06,20.65095439]
[1734941604169,8.1887,183.18,183.09,20.65095439]
[1734941604170,6.6227,183.16,183.09,20.65095439]
[1734941604508,27.27365439,183.16,183.09,20.65095439]
[1734941604886,6.6227,183.16,183.09,20.65095439]
[1734941611700,27.27365439,183.16,183.07,20.65095439]
[1734941612333,20.65095439,183.14,183.07,20.65095439]
[1734941614330,27.27365439,183.16,183.09,20.65095439]
[1734941614534,6.6227,183.16,183.09,20.65095439]
[1734941615607,6.6227,183.16,183.0,2.23390251]
[1734941615608,27.27365439,183.16,183.07,20.65095439]
[1734941621664,20.65095439,183.12,183.05,20.65095439]
[1734941622087,20.65095439,183.12,183.03,20.65095439]
[1734941623161,6.6227,183.16,183.05,20.65095439]
[1734941623458,6.6227,183.16,183.09,20.65095439]
[1734941626063,27.27365439,183.16,183.09,20.65095439]
[1734941627021,27.27365439,183.16,183.05,14.47605198]
[1734941627156,27.27365439,183.16,183.01,8.35189761]
[1734941627157,20.65095439,183.11,183.01,8.35189761]
[1734941627373,20.65095439,183.11,183.03,20.65095439]
[1734941627539,20.65095439,183.09,183.03,20.65095439]
[1734941627933,22.23955439,183.09,183.01,29.002852]
[1734941628246,22.23955439,183.09,182.95,8.35189761]
[1734941628247,20.65095439,183.02,182.95,8.35189761]
[1734941628575,20.65095439,183.01,182.95,8.35189761]
[1734941628736,20.65095439,183.01,182.94,20.65095439]
[1734941628940,20.65095439,183.03,182.95,20.65095439]
[1734941629450,20.65095439,183.03,182.96,20.65095439]
[1734941629970,10.3918,183.08,182.96,20.65095439]
[1734941629971,20.65095439,183.04,182.96,20.65095439]
[1734941632950,20.65095439,183.02,182.94,20.65095439]
[1734941635982,20.65095439,183.0,182.92,20.65095439]
[1734941638502,7.9434,183.01,182.94,20.65095439]
[1734941638671,7.9434,183.01,182.88,20.65095439]
[1734941638672,7.9434,183.01,182.96,20.65095439]
[1734941639272,28.30285439,183.06,182.98,20.65095439]
[1734941639784,0.12549,183.05,182.98,20.65095439]
[1734941640277,28.30285439,183.06,182.98,20.65095439]
[1734941641376,7.6519,183.06,183.0,20.65095439]
[1734941641766,28.57045439,183.1,183.02,20.65095439]
[1734941642306,28.57045439,183.1,183.04,20.65095439]
[1734941642307,7.9195,183.1,183.04,20.65095439]
[1734941642474,6.355,183.1,183.04,20.65095439]
[1734941643126,27.00595439,183.1,183.02,20.65095439]
[1734941643577,6.355,183.1,183.04,20.65095439]
[1734941644102,27.00595439,183.1,183.02,20.65095439]
[1734941644715,28.55645439,183.14,183.08,20.65095439]
[1734941644878,20.65095439,183.17,183.1,20.65095439]
[1734941645388,20.65095439,183.15,183.07,20.65095439]
[1734941645573,6.341,183.18,182.99,15.1776]
[1734941645574,20.65095439,183.11,182.99,15.1776]
[1734941645783,20.65095439,183.11,183.03,20.65095439]
[1734941645998,26.99195439,183.09,183.01,20.65095439]
[1734941647402,6.341,183.09,183.03,20.65095439]
[1734941650315,6.341,183.09,182.97,21.47043987]
[1734941650519,20.65095439,183.05,182.97,20.65095439]
[1734941655536,0.12549,183.04,182.91,0.8197075]
[1734941655707,20.65095439,182.99,182.91,20.65095439]
[1734941655894,20.65095439,182.96,182.89,20.65095439]
[1734941656091,20.65095439,182.95,182.87,20.65095439]
[1734941656392,20.65095439,182.91,182.83,20.65095439]
[1734941656592,1.6159,182.93,182.83,20.65095439]
[1734941656593,20.65095439,182.9,182.83,20.65095439]
[1734941656895,20.65095439,182.91,182.83,20.65095439]
[1734941657507,20.65095439,182.89,182.82,8.35189761]
[1734941657831,20.65095439,182.89,182.81,20.65095439]
[1734941658214,44.55332839,182.9,182.82,20.65095439]
[1734941658806,20.65095439,182.9,182.84,20.65095439]
[1734941659224,1.6159,182.93,182.88,20.65095439]
[1734941659430,1.559,182.98,182.92,20.65095439]
[1734941659604,20.65095439,182.97,182.89,20.65095439]
[1734941659798,20.65095439,182.96,182.88,20.65095439]
[1734941661234,23.902374,182.97,182.9,20.65095439]
[1734941664104,20.65095439,182.96,182.88,20.65095439]
[1734941664309,23.776884,182.95,182.88,20.65095439]
[1734941664564,20.65095439,182.94,182.86,20.65095439]
[1734941664837,23.776884,182.95,182.88,20.65095439]
[1734941666330,20.65095439,182.94,182.86,20.65095439]
[1734941667329,20.0,182.91,182.86,20.65095439]
[1734941667534,0.12549,182.88,182.8,20.65095439]
[1734941668439,1.5048,182.89,182.82,20.65095439]
[1734941668746,1.5048,182.89,182.84,20.65095439]
[1734941670614,8.2466,182.93,182.86,20.65095439]
[1734941670934,8.2466,182.93,182.88,20.65095439]
[1734941671447,8.2466,182.93,182.86,20.65095439]
[1734941673838,0.12549,182.94,182.86,20.65095439]
[1734941675644,0.12549,182.9,182.84,20.65095439]
[1734941677531,23.776884,182.92,182.84,20.65095439]
[1734941677750,23.776884,182.92,182.86,20.65095439]
[1734941678555,20.65095439,182.96,182.88,20.65095439]
[1734941678754,20.0,182.93,182.88,20.65095439]
[1734941678917,20.65095439,182.96,182.88,20.65095439]
[1734941681751,6.2527,182.97,182.9,20.65095439]
[1734941681960,6.2527,182.97,182.92,20.65095439]
[1734941682331,1.5532,182.98,182.92,20.65095439]
[1734941684260,0.12549,182.97,182.92,20.65095439]
[1734941684468,0.12549,182.97,182.9,20.65095439]
[1734941684971,1.5532,182.98,182.92,20.65095439]
[1734941686572,1.5532,182.98,182.93,20.65095439]
[1734941689976,0.12549,182.97,182.91,20.65095439]
[1734941691480,0.12549,182.97,182.89,20.65095439]
[1734941692384,23.902374,182.97,182.89,20.65095439]
[1734941693480,0.12549,182.97,182.89,20.65095439]
[1734941693655,0.12549,182.97,182.91,20.65095439]
[1734941696545,23.902374,182.97,182.89,20.65095439]
[1734941696749,26.95635439,182.94,182.87,20.65095439]
[1734941696985,26.95635439,182.94,182.85,20.65095439]
[1734941696986,23.776884,182.93,182.85,20.65095439]
[1734941698186,6.3054,182.94,182.87,20.65095439]
[1734941698478,6.3054,182.94,182.89,20.65095439]
[1734941700265,6.3054,182.94,182.87,20.65095439]
[1734941700466,0.12549,182.93,182.87,20.65095439]
[1734941700692,0.12549,182.91,182.84,20.65095439]
[1734941700896,0.12549,182.89,182.82,20.65095439]
[1734941701056,1.6329,182.9,182.84,20.65095439]
[1734941701254,28.58925439,182.94,182.86,20.65095439]
[1734941701580,7.9383,182.94,182.89,20.65095439]
[1734941701785,4.0984,183.0,182.92,20.65095439]
[1734941701786,7.8808,182.99,182.92,20.65095439]
[1734941701953,7.8808,182.99,182.93,20.65095439]
[1734941702897,0.12549,182.98,182.93,20.65095439]
[1734941703191,0.12549,182.98,182.92,20.65095439]
[1734941704372,44.55332839,182.98,182.9,20.65095439]
[1734941704577,20.65095439,182.96,182.9,20.65095439]
[1734941704785,40.65095439,182.92,182.85,20.65095439]
[1734941705098,8.0869,182.91,182.83,20.65095439]
[1734941706084,44.42783839,182.88,182.81,20.65095439]
[1734941706287,20.65095439,182.85,182.78,20.65095439]
[1734941706884,20.65095439,182.89,182.82,20.65095439]
[1734941707107,44.42783839,182.9,182.82,20.65095439]
[1734941707304,20.65095439,182.89,182.82,20.65095439]
[1734941707612,20.65095439,182.89,182.75,43.902374]
[1734941707919,20.65095439,182.89,182.82,20.65095439]
[1734941708084,0.12549,182.88,182.81,20.65095439]
[1734941708287,23.902374,182.88,182.81,20.65095439]
[1734941708620,0.12549,182.86,182.79,20.65095439]
[1734941708915,6.47479,182.83,182.76,20.65095439]
[1734941710203,6.47479,182.83,182.78,20.65095439]
[1734941710403,20.0,182.85,182.8,20.65095439]
[1734941710888,50.45563839,182.88,182.8,20.65095439]
[1734941711089,6.0278,182.88,182.82,20.65095439]
[1734941713400,0.12549,182.87,182.82,20.65095439]
[1734941713601,0.12549,182.87,182.8,20.65095439]
[1734941713602,0.12549,182.85,182.8,20.65095439]
[1734941714015,23.902374,182.85,182.78,20.65095439]
[1734941714183,1.72639,182.83,182.76,20.65095439]
[1734941715617,1.72639,182.83,182.78,20.65095439]
[1734941716903,0.12549,182.84,182.78,20.65095439]
[1734941717288,20.65095439,182.86,182.78,20.65095439]
[1734941717495,28.30655439,182.88,182.8,20.65095439]
[1734941717807,20.0,182.85,182.8,20.65095439]
[1734941717996,20.0,182.85,182.78,20.65095439]
[1734941719815,7.6556,182.88,182.8,20.65095439]
[1734941720118,20.65095439,182.93,182.84,20.65095439]
[1734941720493,20.65095439,182.95,182.86,20.65095439]
[1734941720695,20.65095439,182.97,182.9,20.65095439]
[1734941720899,0.12549,182.96,182.9,20.65095439]
[1734941721106,7.8907,182.98,182.91,20.65095439]
[1734941721304,7.8907,182.98,182.92,20.65095439]
[1734941721641,7.8907,182.98,182.93,20.65095439]
[1734941721932,7.8907,182.98,182.92,20.65095439]
[1734941722228,7.8907,182.98,182.91,20.65095439]
[1734941722404,7.8907,182.98,182.92,20.65095439]
[1734941722925,7.8907,182.98,182.93,20.65095439]
[1734941723244,0.12549,183.01,182.95,20.65095439]
[1734941724229,26.93235439,183.02,182.95,20.65095439]
[1734941724825,26.93235439,183.02,182.88,36.67733593]
[1734941724826,23.902374,182.99,182.93,20.65095439]
[1734941725011,23.902374,182.99,182.9,20.65095439]
[1734941725012,0.12549,182.97,182.9,20.65095439]
[1734941725418,0.12549,182.97,182.83,3.78799735]
[1734941725419,44.55332839,182.97,182.89,20.65095439]
[1734941726634,20.77644439,182.95,182.89,20.65095439]
[1734941727343,20.77644439,182.93,182.85,20.65095439]
[1734941727632,0.12549,182.89,182.83,20.65095439]
[1734941727817,20.77644439,182.89,182.83,20.65095439]
[1734941728221,23.776884,182.88,182.81,20.65095439]
[1734941728425,20.65095439,182.89,182.81,20.65095439]
[1734941728628,25.348984,182.88,182.81,20.65095439]
[1734941729933,1.5721,182.88,182.81,20.65095439]
[1734941730125,1.5721,182.92,182.85,20.65095439]
[1734941730327,1.5721,182.92,182.87,20.65095439]
[1734941730847,6.3604,182.94,182.87,20.65095439]
[1734941731163,6.3604,182.94,182.8,13.6761]
[1734941731164,20.65095439,182.92,182.85,20.65095439]
[1734941731317,20.65095439,182.92,182.79,20.65095439]
[1734941731318,20.65095439,182.9,182.83,20.65095439]
[1734941731651,20.65095439,182.88,182.81,20.65095439]
[1734941731950,0.12549,182.85,182.79,20.65095439]
[1734941732186,0.12549,182.85,182.78,33.65085585]
[1734941732736,23.902374,182.85,182.78,33.65085585]
[1734941734163,0.12549,182.85,182.78,33.65085585]
[1734941734454,23.902374,182.85,182.78,33.65085585]
[1734941734955,40.02225585,182.86,182.73,33.65085585]
[1734941734956,0.12549,182.79,182.73,33.65085585]
[1734941735159,23.902374,182.79,182.68,1.5799]
[1734941735323,0.12549,182.79,182.71,33.65085585]
[1734941735825,23.902374,182.79,182.71,33.65085585]
[1734941736254,21.5391,182.8,182.73,33.65085585]
[1734941736550,21.5391,182.8,182.75,33.65085585]
[1734941736741,1.5391,182.8,182.75,33.65085585]
[1734941738745,1.5391,182.8,182.68,1.5799]
[1734941738746,20.0,182.79,182.73,33.65085585]
[1734941738944,23.776884,182.79,182.71,33.65085585]
[1734941739157,20.0,182.73,182.64,1.5674]
[1734941739339,20.0,182.73,182.68,33.65085585]
[1734941740942,6.0648,182.78,182.72,33.65085585]
[1734941741332,0.12549,182.77,182.72,33.65085585]
[1734941742564,6.0648,182.78,182.74,33.65085585]
[1734941742736,1.5391,182.8,182.74,33.65085585]
[1734941742939,1.5391,182.8,182.76,33.65085585]
[1734941743159,6.405,182.83,182.76,33.65085585]
[1734941743356,6.405,182.83,182.78,33.65085585]
[1734941743962,33.77634585,182.82,182.74,33.65085585]
[1734941744544,0.12549,182.79,182.72,33.65085585]
[1734941745358,33.65085585,182.82,182.74,33.65085585]
[1734941745752,33.65085585,182.77,182.7,33.65085585]
[1734941745948,40.19895585,182.75,182.68,33.65085585]
[1734941749177,0.12549,182.74,182.68,33.65085585]
[1734941754792,23.902374,182.74,182.68,33.65085585]
[1734941754981,0.12549,182.74,182.63,20.0]
[1734941755180,0.12549,182.74,182.68,33.65085585]
[1734941755384,8.2052,182.81,182.68,33.65085585]
[1734941755385,7.8596,182.82,182.72,33.65085585]
[1734941755587,7.8596,182.82,182.76,33.65085585]
[1734941756169,7.8596,182.82,182.76,20.71321394]
[1734941757203,7.8596,182.82,182.78,20.71321394]
[1734941757373,20.71321394,182.86,182.78,20.71321394]
[1734941757374,28.57281394,182.86,182.78,20.71321394]
[1734941757780,20.71321394,182.84,182.73,0.82050266]
[1734941758099,7.8596,182.86,182.72,20.71321394]
[1734941758100,20.71321394,182.8,182.72,20.71321394]
[1734941758394,33.67552444,182.79,182.71,33.67552444]
[1734941758919,0.12549,182.78,182.71,33.67552444]
[1734941760616,20.0,182.78,182.73,33.67552444]
[1734941762916,33.67552444,182.84,182.76,33.67552444]
[1734941763219,7.8596,182.86,182.8,33.67552444]
[1734941763788,7.8596,182.86,182.82,33.67552444]
[1734941764522,40.21912444,182.9,182.82,33.67552444]
[1734941764817,6.5436,182.9,182.84,33.67552444]
[1734941765628,6.0778,182.95,182.88,33.67552444]
[1734941765823,39.75332444,182.95,182.87,33.67552444]
[1734941766115,6.0778,182.95,182.88,33.67552444]
[1734941766515,0.12549,182.94,182.88,33.67552444]
[1734941766713,6.0778,182.95,182.88,33.67552444]
[1734941767227,0.12549,182.94,182.88,33.67552444]
[1734941767391,6.0778,183.0,182.92,33.67552444]
[1734941767598,6.0778,183.0,182.93,33.67552444]
[1734941767809,6.0778,183.0,182.88,34.49539169]
[1734941767810,6.0778,183.0,182.94,33.67552444]
[1734941768132,0.12549,182.99,182.93,33.67552444]
[1734941768299,0.12549,182.97,182.9,33.67552444]
[1734941768495,0.12549,182.95,182.89,33.67552444]
[1734941768822,33.80101444,182.95,182.88,33.67552444]
[1734941769126,33.80101444,182.95,182.87,33.67552444]
[1734941769423,33.80101444,182.95,182.88,33.67552444]
[1734941770007,33.67552444,182.92,182.85,33.67552444]
[1734941771197,33.67552444,182.91,182.84,33.67552444]
[1734941772292,40.07042444,182.91,182.82,33.67552444]
[1734941772497,40.07042444,182.91,182.83,33.67552444]
[1734941772696,40.07042444,182.91,182.84,33.67552444]
[1734941772897,6.3949,182.91,182.84,33.67552444]
[1734941773198,6.3949,182.91,182.85,33.67552444]
[1734941773495,6.3949,182.91,182.88,33.67552444]
[1734941773692,6.4225,182.95,182.88,33.67552444]
[1734941773924,0.12549,182.92,182.86,33.67552444]
[1734941774119,0.12549,182.91,182.84,33.67552444]
[1734941774424,0.12549,182.89,182.82,33.67552444]
[1734941775107,23.902374,182.89,182.82,33.67552444]
[1734941775431,23.902374,182.85,182.78,33.67552444]
[1734941775724,20.0,182.81,182.76,33.67552444]
[1734941776026,0.12549,182.81,182.76,33.67552444]
[1734941776214,20.0,182.82,182.76,33.67552444]
[1734941776394,6.3675,182.86,182.71,13.6827]
[1734941776395,6.3675,182.86,182.8,33.67552444]
[1734941777021,6.3675,182.86,182.78,33.67552444]
[1734941777022,23.902374,182.85,182.78,33.67552444]
[1734941777419,0.12549,182.83,182.76,33.67552444]
[1734941777929,23.776884,182.85,182.78,33.67552444]
[1734941778742,20.0,182.8,182.74,33.67552444]
[1734941779030,43.776884,182.79,182.72,33.67552444]
[1734941779239,23.776884,182.77,182.7,33.67552444]
[1734941779536,6.3675,182.86,182.74,33.67552444]
[1734941779714,23.776884,182.85,182.67,0.12549]
[1734941779913,23.776884,182.82,182.68,0.82055124]
[1734941780210,23.776884,182.82,182.75,33.67552444]
[1734941781747,20.0,182.82,182.76,33.67552444]
[1734941784721,0.12549,182.81,182.74,33.67552444]
[1734941785045,0.12549,182.81,182.76,33.67552444]
[1734941785239,6.3675,182.86,182.78,33.67552444]
[1734941785418,6.3675,182.86,182.8,33.67552444]
[1734941785759,0.12549,182.85,182.8,33.67552444]
[1734941786044,33.80101444,182.85,182.78,33.67552444]
[1734941786251,33.80101444,182.85,182.76,33.67552444]
[1734941786422,33.80101444,182.85,182.78,33.67552444]
[1734941786748,6.3675,182.86,182.78,33.67552444]
[1734941786955,6.3675,182.86,182.8,33.67552444]
[1734941787144,4.1003,182.91,182.84,33.67552444]
[1734941787145,6.5355,182.9,182.84,33.67552444]
[1734941788023,0.12549,182.89,182.84,33.67552444]
[1734941788325,0.12549,182.89,182.82,33.67552444]
[1734941788526,33.80101444,182.89,182.82,33.67552444]
[1734941791143,23.776884,182.86,182.77,33.67552444]
[1734941792019,23.776884,182.86,182.79,33.67552444]
[1734941792220,23.776884,182.88,182.81,33.67552444]
[1734941792739,20.0,182.85,182.81,33.67552444]
[1734941792939,23.776884,182.84,182.77,33.67552444]
[1734941793142,23.776884,182.82,182.75,33.67552444]
[1734941793347,40.27532444,182.81,182.73,33.67552444]
[1734941794756,0.12549,182.8,182.73,33.67552444]
[1734941796662,6.5998,182.81,182.75,33.67552444]
[1734941797038,0.12549,182.8,182.75,33.67552444]
[1734941797463,8.1267,182.86,182.79,33.67552444]
[1734941797769,8.1267,182.86,182.81,33.67552444]
[1734941803578,0.12549,182.85,182.79,33.67552444]
[1734941803754,0.12549,182.85,182.77,33.67552444]
[1734941805368,0.12549,182.81,182.77,33.67552444]
[1734941805677,0.12549,182.81,182.75,33.67552444]
[1734941805876,0.12549,182.81,182.67,6.2659]
[1734941805877,0.12549,182.77,182.67,6.2659]
[1734941806165,6.3125,182.76,182.69,20.72884946]
[1734941806381,6.3125,182.82,182.75,20.72884946]
[1734941806556,6.3125,182.82,182.77,20.72884946]
[1734941808268,35.1795123,182.86,182.78,33.6526123]
[1734941808480,1.5269,182.86,182.8,33.6526123]
[1734941809241,6.2125,182.87,182.8,33.6526123]
[1734941809474,6.2125,182.87,182.82,33.6526123]
[1734941811374,33.6526123,182.9,182.82,33.6526123]
[1734941811877,1.5545,182.91,182.86,33.6526123]
[1734941812045,1.5545,182.91,182.84,33.6526123]
[1734941812445,0.12549,182.9,182.84,33.6526123]
[1734941812648,1.5545,182.91,182.84,33.6526123]
[1734941812861,6.3559,182.92,182.86,33.6526123]
[1734941813775,0.12549,182.89,182.82,33.6526123]
[1734941813974,0.12549,182.89,182.81,33.6526123]
[1734941813975,33.7781023,182.89,182.81,33.6526123]
[1734941814270,6.3559,182.92,182.85,33.6526123]
[1734941816182,33.6526123,182.95,182.87,33.6526123]
[1734941816389,1.5535,182.96,182.89,33.6526123]
[1734941816679,6.4857,182.97,182.91,33.6526123]
[1734941817173,1.5593,183.0,182.95,33.6526123]
[1734941817544,6.4857,183.02,182.95,33.6526123]
[1734941817745,0.12549,183.01,182.95,33.6526123]
[1734941817967,6.4857,183.02,182.95,33.6526123]
[1734941818690,6.4857,183.02,182.9,1.5029]
[1734941818691,33.6526123,183.01,182.93,33.6526123]
[1734941818850,20.0,182.98,182.91,33.6526123]
[1734941819045,0.12549,182.98,182.91,33.6526123]
[1734941819252,0.12549,182.98,182.93,33.6526123]
[1734941820081,33.6526123,183.01,182.93,33.6526123]
[1734941820482,0.12549,182.99,182.93,33.6526123]
[1734941820780,20.0,182.96,182.89,33.6526123]
[1734941820988,0.12549,182.93,182.89,33.6526123]
[1734941821149,0.12549,182.93,182.87,33.6526123]
[1734941821348,35.2418123,182.95,182.87,33.6526123]
[1734941821549,33.6526123,182.93,182.85,33.6526123]
[1734941823052,20.0,182.92,182.87,33.6526123]
[1734941823677,33.6526123,182.95,182.88,23.776884]
[1734941823979,33.6526123,183.05,182.94,23.776884]